Cogmind - Beta 15 @@@ ROGUE MODE // 2025.06.03 @ 20:34:45 Player: Figgis Result: Destroyed by 8W-MDH(R) with Subdweller Laser Performance ------------- Evolutions (0) 0 Regions Visited (1) 200 Robots Destroyed (11) 55 Value Destroyed (249) 249 Prototype IDs (0) 0 Alien Tech Used (0) 0 Bonus (0) 0 TOTAL SCORE: 504 Bonus ------- None Cogmind --------- Core Integrity 0/250 Matter 299/300 Energy 100/100 System Corruption 0% Temperature Warm (134) Movement Core (200) Ox3 Location -10/Materials Parts ------- > --- POWER (1) -------- (None) > --- PROPULSION (2) --- (None) > --- UTILITY (2) ------ Medium Storage Unit Core Shielding > --- WEAPON (2) ------- Light Assault Rifle > --- INVENTORY (10) --- Ion Engine Ion Engine Aluminum Leg Aluminum Leg Aluminum Leg Sensor Array Medium Laser Light Assault Rifle Light Cannon Peak State ------------ > --- POWER ------------ Light Nuclear Core > --- PROPULSION ------- Aluminum Leg > --- UTILITY ---------- Medium Storage Unit Core Shielding > --- WEAPON ----------- Small Laser Light Assault Rifle > --- INVENTORY -------- Ion Engine Ion Engine Aluminum Leg Aluminum Leg Aluminum Leg Aluminum Leg Sensor Array Medium Laser Light Assault Rifle Light Cannon [Rating: 9] Favorites ----------- Power Light Ion Engine Engine Light Ion Engine Power Core Light Nuclear Core Propulsion Aluminum Leg Leg Aluminum Leg Utility Medium Storage Unit Storage Medium Storage Unit Protection Core Shielding Weapon Small Laser Energy Gun Small Laser Ballistic Gun Light Assault Rifle Build | -11 -10 ------- Run | Yrd Mat Slots Evolved . | . . Power . | . . Propulsion . | . . Utility . | . . Weapon . | . . Parts Attached 10 | 4 6 Power 2 | . 2 Engine 1 | . 1 Core 1 | . 1 Reactor . | . . Propulsion 4 | 2 2 Treads . | . . Leg 4 | 2 2 Wheel . | . . Hover . | . . Flight . | . . Utility 2 | . 2 Device . | . . Storage 1 | . 1 Processor . | . . Hackware . | . . Protection 1 | . 1 Artifact . | . . Weapon 2 | 2 . Energy Gun 1 | 1 . Energy Cannon . | . . Ballistic Gun 1 | 1 . Ballistic Cannon . | . . Launcher . | . . Special Weapon . | . . Impact Weapon . | . . Slashing Weapon . | . . Piercing Weapon . | . . Special Melee Weapon . | . . Unidentified Prototypes . | . . Parts Lost 6 | . 6 Power 2 | . 2 Propulsion 3 | . 3 Utility . | . . Weapon 1 | . 1 Highest Loss Streak 4 | . 4 To Critical Strikes . | . . Average Backups 5 | 2 5 Power 1 | . 1 Propulsion 1 | . 1 Utility . | . . Weapon 1 | . 1 Tool/Special . | . . Unused Backups 10 | . 10 Power 2 | . 2 Propulsion 3 | . 3 Utility 2 | . 2 Weapon 3 | . 3 Tool/Special . | . . Average Slot Usage (%) 92 | . 92 Engine 9 | . 9 Core 1 | . 1 Leg 26 | . 26 Storage 12 | . 12 Protection 12 | . 12 Energy Gun 13 | . 13 Ballistic Gun 14 | . 14 Peak Build Rating 9 | 4 9 Average Rating 6 | 2 6 On Entrance 2 | . 4 Naked Turns . | . . Heaviest Build 18 | 2 18 Greatest Support 20 | 3 20 Greatest Overweight (x) 1 | . 1 Average Overweight (x) . | . . Largest Inventory Capacity 10 | 5 10 Average Capacity 9 | 5 9 Most Carried 10 | 4 10 Average Carried 5 | 2 5 Final Capacity 10 | 5 10 Final Carried 9 | 4 9 Class Distribution -------------------- 100% | Mutant Dominant Class ---------------- Mutant | -10/Materials Resources | -11 -10 ----------- Run | Yrd Mat Matter Collected 343 | 197 146 Remotely . | . . Salvage Created 287 | . 287 Parts 21 | . 21 Haulers Intercepted . | . . Recyclers Shooed 1 | . 1 Parts Field Recycled . | . . Retrieved Matter . | . . Parts Self-Destructed . | . . Prevented . | . . Kills | -11 -10 ------- Run | Yrd Mat Combat Hostiles Destroyed 10 | . 10 Guns 10 | . 10 Classes Destroyed 3 | . 3 Watcher 1 | . 1 Swarmer 5 | . 5 Grunt 5 | . 5 Best Kill Streak 4 | . 4 Combat Bots Only 4 | . 4 Max Kills in Single Turn 1 | . 1 Gunslinging . | . . Exploded . | . . Melee . | . . Uniques/NPCs Destroyed . | . . Combat | -11 -10 -------- Run | Yrd Mat Hostile Shots Fired 91 | . 91 Missed 30 | . 30 Hits 61 | . 61 Projectile 61 | . 61 Critical Strikes 2 | . 2 Damage Taken 924 | . 924 Core 257 | . 257 Absorbed by Shields . | . . Redirected to Shielding 46 | . 46 Core Remaining (%) 100 | 100 . Volleys Fired 55 | . 55 Largest 2 | . 2 Hottest 60 | . 60 Shots Fired 106 | . 106 Gun 106 | . 106 Cannon . | . . Launcher . | . . Special . | . . Kinetic 55 | . 55 Thermal 51 | . 51 Explosive . | . . Electromagnetic . | . . Robot Hit Streak 13 | . 13 Robot Miss Streak 4 | . 4 Penetration Max . | . . Secondary Targets . | . . Shots Hit Robots 76 | . 76 Core Hits 23 | . 23 Critical Kills . | . . Critical Parts Destroyed . | . . Critical Strikes . | . . Melee Attacks . | . . Impact . | . . Slashing . | . . Piercing . | . . Sneak Attacks . | . . Combat Hostiles . | . . Follow-up Attacks . | . . Damage Inflicted 757 | . 757 Guns 755 | . 755 Cannons . | . . Explosions . | . . Melee . | . . Ramming 2 | . 2 Kinetic 327 | . 327 Thermal 428 | . 428 Explosive . | . . Electromagnetic . | . . Impact . | . . Slashing . | . . Piercing . | . . Highest Corruption . | . . Average Corruption . | . . Corruption Purged . | . . Corruption Blocked . | . . Overload Shots . | . . Overflow Damage . | . . Projectiles . | . . Explosions . | . . Melee . | . . Knockbacks . | . . Impact . | . . Kinetic . | . . Secondary . | . . Self-Inflicted Damage . | . . Shots . | . . Rammed . | . . Targets Rammed 1 | . 1 Kicked 1 | . 1 Crushed . | . . Highest Temperature 147 | . 147 Average Temperature 32 | . 32 Received Heat Transfer 318 | . 318 Siege Activations . | . . Martial Activations . | . . Shielding Activations . | . . Robots Disrupted . | . . Combat Hostiles . | . . Robots Corrupted . | . . Combat Hostiles . | . . Parts Fried . | . . Impact Corruptions . | . . Robots Melted . | . . Combat Hostiles . | . . Parts Melted 1 | . 1 Heat Transferred 950 | . 950 Parts Sabotaged . | . . Parts Stolen . | . . Parts Stripped . | . . Power Chain Reactions . | . . Alert | -11 -10 ------- Run | Yrd Mat Maximum Alert Level . | . . Low Security (%) 100 | 100 100 Level 1 . | . . Level 2 . | . . Level 3 . | . . Level 4 . | . . Level 5 . | . . High Security . | . . Max Security . | . . Peak Influence 117 | . 117 Initial . | . . Average 44 | . 46 Influence Increases 364 | . 364 Destroy 0b10 Robot/C 200 | . 200 Destroy 0b10 Robot/NC 5 | . 5 Destroy Leader 52 | . 52 Successful Hack 32 | . 32 Lose Combat Pursuer 75 | . 75 Influence Decreases 335 | . 335 Time Decay 275 | . 275 Lost Part 60 | . 60 Squads Dispatched 2 | . 2 Investigation 1 | . 1 Extermination . | . . Reinforcement 1 | . 1 Assault . | . . Garrison . | . . Intercept . | . . Searches Triggered . | . . Construction Impeded . | . . Haulers Reinforced . | . . Active Scanning Responses . | . . Cargo Convoy Interrupts . | . . Stealth | -11 -10 --------- Run | Yrd Mat Distress Signals 2 | . 2 Communications Jammed . | . . Distress Signals . | . . Times Spotted 25 | . 25 Peak Tracking Total 4 | . 4 Tactical Retreats 4 | . 4 Traps | -11 -10 ------- Run | Yrd Mat Traps Triggered 2 | . 2 Indirectly . | . . Trap Hack Attempts . | . . Triggered . | . . Disarmed . | . . Reprogrammed . | . . Reused . | . . Traps Extracted . | . . Installed . | . . Triggered . | . . Machines | -11 -10 ---------- Run | Yrd Mat Machines Disabled . | . . Max in Single Turn . | . . Machines Repaired . | . . Machines Dismantled . | . . Machines Sabotaged . | . . Overloaded Fab Kills . | . . Hacking | -11 -10 --------- Run | Yrd Mat Machines Accessed 4 | . 4 Terminals 4 | . 4 Fabricators . | . . Repair Stations . | . . Recycling Units . | . . Scanalyzers . | . . Garrison Access . | . . Total Hacks 11 | . 11 Successful 6 | . 6 Failed 4 | . 4 Catastrophic 1 | . 1 Database Lockouts 1 | . 1 Manual 5 | . 5 Terminals 11 | . 11 Fabricators . | . . Repair Stations . | . . Recycling Units . | . . Scanalyzers . | . . Garrison Access . | . . Terminal Hacks 6 | . 6 Robot Analysis 2 | . 2 Terminal Index 1 | . 1 Locate Traps 1 | . 1 Dispatch Records 1 | . 1 Patrol Status 1 | . 1 Fabricator Hacks . | . . Repair Station Hacks . | . . Recycling Unit Hacks . | . . Scanalyzer . | . . Garrison Access Hacks . | . . Unauthorized Hacks . | . . Terminals . | . . Fabricators . | . . Repair Stations . | . . Recycling Units . | . . Scanalyzers . | . . Garrison Access . | . . Data Cores Recovered . | . . Used . | . . Hacking Detections 4 | . 4 Full Trace Events . | . . Feedback Events . | . . Feedback Blocked . | . . Robot Schematics Acquired . | . . Robots Built . | . . Authchips . | . . Time . | . . Total Robot Build Rating . | . . Part Schematics Acquired . | . . Parts Built . | . . Authchips . | . . Time . | . . Total Part Build Rating . | . . Parts Repaired . | . . Time . | . . Parts Recycled . | . . Recycled Matter . | . . Retrieved Matter . | . . Retrieved Components . | . . Parts Scanalyzed . | . . Part Schematics Acquired . | . . Parts Damaged . | . . Bothacking | -11 -10 ------------ Run | Yrd Mat Used RIF Installer . | . . Robots Hacked . | . . Non-combat . | . . Combat . | . . Robot Hacks Applied . | . . Relay Couplers Released . | . . Fabnet Peak Effective % . | . . Robots Rewired . | . . Allies Hacked . | . . Hacks Repelled . | . . Allies | -11 -10 -------- Run | Yrd Mat Total Allies . | . . Largest Group . | . . Highest-Rated Group . | . . Highest-Rated Ally . | . . Total Orders . | . . Ally Attacks . | . . Total Damage . | . . Kills . | . . Allies Corrupted . | . . Allies Melted . | . . Intel | -11 -10 ------- Run | Yrd Mat Active Infowar (turns) . | . . Robot Analysis Total 1 | . 1 Derelict Logs Recovered . | . . Drone Launches . | . . Drone Recoveries . | . . Exploration | -11 -10 ------------- Run | Yrd Mat Turns Passed 690 | 30 660 Spaces Moved 457 | 40 417 Core 142 | 40 102 Treads . | . . Legs 315 | . 315 Wheels . | . . Hover . | . . Flight . | . . Fastest Speed 50 | 50 50 Average Speed 99 | 50 104 Slowest Speed 190 | 50 190 Overloaded Moves . | . . Propulsion Burnouts . | . . Robots Hopped . | . . Potential Cave-ins . | . . Cave-ins Triggered . | . . Exploration Rate (%) 41 | 4 79 Regions Visited 1 Branch Regions . Pre-discovered Areas . | . . Known Exits Taken . | . . Unknown Exits Taken 1 | 1 . Scrap Searched . | . . Spaces Dug . | . . Terrain Destroyed . | . . Melee . | . . Projectile . | . . AOE . | . . Terrain Rammed . | . . Walls Destroyed . | . . Machines Disabled . | . . Actions | -11 -10 --------- Run | Yrd Mat Total 593 | 47 546 Wait 56 | . 56 Move 456 | 39 417 Hop . | . . Pick Up 13 | 4 9 Fast Attach 7 | 4 3 Attach 2 | . 2 Detach . | . . Swap 1 | . 1 Drop 2 | . 2 Fire 55 | . 55 Melee . | . . Ram . | . . Kick 1 | . 1 Crush . | . . Escape Stasis . | . . Rewire . | . . Trap . | . . Miscellaneous . | . . Route ------- -11/Scrapyard -10/Materials (discovered 3 exits: [*Mat x3]) History --------- Turn | Location | Event 18 | -11/Scrapyard | Discovered new exit (range 14) 31 | -11/Scrapyard | Entered Materials 66 | -10/Materials | Discovered new exit (range 10) 286 | -10/Materials | Discovered new exit (range 15) 313 | -10/Materials | Build established: Mutant 388 | -10/Materials | Central database locked down 393 | -10/Materials | Discovered new exit (range 5) 531 | -10/Materials | Derelicts attacked the area 580 | -10/Materials | Core integrity fell below 50% 686 | -10/Materials | Core integrity fell below 20% 691 | -10/Materials | Destroyed by 8W-MDH(R) with Subdweller Laser Last Messages --------------- 00653_ K-01 Serf collects debris. 00661_ R-06 Scavenger collects Med. Matter Pod. 00661_ R-06 Scavenger destroyed. 00663_ Extracted 1 matter. 00663_ K-01 Serf collects debris. 00667_ Acquired 1 matter. 00667_ K-01 Serf collects debris. 00670_ Acquired 1 matter. 00670_ K-01 Serf collects debris. 00672_ Acquired 1 matter. 00672_ R-06 Scavenger collects Wheel. 00674_ K-01 Serf collects debris. 00675_ Acquired 1 matter. 00677_ K-01 Serf collects debris. 00683_ Aluminum Leg destroyed. 00685_ K-01 Serf collects debris. 00687_ Lgt. Nuclear Core destroyed. 00688_ K-01 Serf collects debris. 00688_ K-01 Serf destroyed. 00689_ Sml. Laser destroyed. Map ----- +----------------------------------------------------+ | ? ????# ! # ### + # | | " """ ?? ????# # """ # | | " """ #????????# """ """ # """ # | | " """ #??????????""" """ # """ ? | | #???????????"" """ ### # ?? | | #??????????? ######?# #########? | | #???????????##########??????# #????????? | | #???????????????????????????# #????????? | | #######???????????????????????????# #????????? | | ??????????????????????????????????# #????????? | | ??????????????????????????????????# #????????? | | # ???????????????????????# ###????????? | | # #??????????????????????# #??????????? | | """"??# #??????????????????????# #??????????? | | ?"""???+ #??? ??????????????????# #??????????? | | ???????# #??+#??????????????????# #??????????? | | ????#?## ### #??????????????????# #??????????? | | ???? # ###????????######### #??????????? | | ????? # #????????# ## #??????????? | | ??????+ +????????# ## #??????????? | | ??????#^ ?????????# ## #??????????? | | ??????# #??????????# """ ## #??????????? | | ??????# #??????????# """ ## #??????????? | | ??????# #??????????# """ ## #??????????? | | ####### =* #################+## #??????????? | | =% r %% !%@ !% R #??????????? | | ! = *!=% |R! < #??????????? | | = R = #??????????? | | ########## ########+######+######??????????? | | #??????###+###?# % ## #??????????????? | | " #??????? ??# ! ######??????????????? | | " #?????# =!! # ! #???????????????????? | | " #?????# !!! # ! #???????????????????? | | #?????# !!! # #???????????????????? | | " #?????# # #???????????????????? | | " #?????# # #???????????????????? | | " #?????# # #???????????????????? | | ???????# ###########???????????????????? | | ????????# #?????????????????????????????? | | ????????##########?????????????????????????????? | | ???????????????????????????????????????????????? | | | | | | | | | | | | | | | | | | | +----------------------------------------------------+ Best States ------------- Heat Dissipation 25 Energy Generation 14 Energy Capacity 160 Matter Stores 300 Matter Capacity 300 Sight Range 16 Terrain Scan Density 10 Core Shielding 20 Evasion (%) 55 Item Schematics ----------------- None Robot Schematics ------------------ None Fabricated ------------ Nothing Repaired ---------- Nothing Alien Tech Used ----------------- None Achievements -------------- None Challenges ------------ None Game ------ Seed WeaponThermalAmplifier Manual? 0 Play Time 00:07:22 Cumulative 177.8 hours Start 2025.06.03 @ 20:28:50 End 2025.06.03 @ 20:34:45 Sessions 1 Manual Loads 0 Difficulty Rogue Special Mode None Game No. 277 Rogue 274 Adventurer 3 Explorer 0 Win Type - Total 1 Types 1/0/0/0/0/0/0/0/0/0 Lore% 61 Gallery% 58 Achievement% 46 Wizard Run 0 Options --------- Layout 0 ASCII 0 Keyboard 0 Movement Mouse Keybinds 0 Fullscreen 2 Font 18/SmallcapsGlow Map View 76x50 Zoom Use 0% Tactical HUD 1 Map Filters NONE Filters NONE Steam 1 RUN: bb27c2f9-3434-4d28-9b75-85c736e8b047